bitfinex-derivatives/quotes_BNBF0:USTF0_20250303
["timestamp","ask_amount","ask_price","bid_price","bid_amount"]
[1741032750481,0.30140348,575.1,575.04,4.08286115]
[1741032750981,0.30140348,575.09,575.04,4.08286115]
[1741032751186,0.30140348,575.08,575.04,4.08286115]
[1741032751381,0.30140348,575.14,575.04,4.08286115]
[1741032751588,0.30140348,575.13,575.04,4.08286115]
[1741032751781,0.30140348,575.12,575.04,4.08286115]
[1741032751985,1.67005527,575.06,575.04,0.95832747]
[1741032752192,0.30140348,575.05,575.04,0.95832747]
[1741032752385,8.0151074,575.17,575.04,0.95832747]
[1741032752688,1.00070972,575.08,574.95,0.92800639]
[1741032752882,0.30140348,575.07,574.95,0.92800639]
[1741032753083,0.30140348,575.06,574.95,0.92800639]
[1741032753282,0.30140348,575.05,574.95,0.92800639]
[1741032753483,8.0151074,575.12,574.95,0.92800639]
[1741032753681,8.0151074,575.11,574.95,0.92800639]
[1741032753887,4.70459791,575.1,574.95,0.92800639]
[1741032754087,4.70459791,575.09,574.95,0.92800639]
[1741032754288,1.32474507,575.08,574.95,0.92800639]
[1741032754595,0.30140348,575.07,574.95,0.92800639]
[1741032754888,0.30140348,575.06,574.95,0.92800639]
[1741032755083,1.81745382,575.06,574.95,0.92800639]
[1741032755283,0.30140348,575.05,574.95,0.92800639]
[1741032755685,0.34780189,575.04,574.95,0.92800639]
[1741032755882,0.30140348,575.03,574.95,0.92800639]
[1741032756986,2.74845943,575.03,574.95,0.92800639]
[1741032757190,0.30140126,575.02,574.95,0.92800639]
[1741032757386,0.30140126,575.03,574.95,0.92800639]
[1741032757985,1.81754875,575.02,574.95,0.92800639]
[1741032758191,0.30140126,575.01,574.95,0.92800639]
[1741032759393,0.34782608,575.0,574.95,0.92800639]
[1741032759594,0.30140126,574.99,574.95,0.92800639]
[1741032760790,1.8178494,574.98,574.95,0.92800639]
[1741032760991,0.30140126,574.97,574.95,0.92800639]
[1741032763198,1.8178494,574.98,574.95,0.92800639]
[1741032763401,0.30115478,574.97,574.95,0.92800639]
[1741032764693,0.30107305,574.96,574.95,0.92800639]
[1741032765099,0.30107305,574.97,574.95,0.92800639]
[1741032765401,0.30107305,574.96,574.95,0.92800639]
[1741032766396,0.30107305,574.97,574.95,0.92800639]
[1741032766605,0.30107305,574.96,574.95,0.92800639]
[1741032767798,0.30107305,574.96,574.95,0.03120448]
[1741032769605,0.30102719,574.96,574.95,0.03120448]
[1741032772307,1.81789688,574.97,574.95,0.03120448]
[1741032773007,0.34785028,574.96,574.95,0.03120448]
[1741032773207,0.64904419,574.96,574.95,0.03120448]
[1741032773606,0.34785028,574.96,574.95,0.03120448]
[1741032777410,0.34785028,574.96,574.57,1.396]
[1741032791123,0.30064347,574.95,574.57,2.458]
[1741032791322,0.34785028,574.96,574.57,2.458]
[1741032793730,0.34785028,574.96,574.57,3.544]
[1741032793930,0.30043961,574.95,574.57,3.544]
[1741032794131,0.34786238,574.94,574.57,3.544]
[1741032794327,0.30043961,574.93,574.57,3.544]
[1741032794526,0.34786238,574.94,574.57,3.544]
[1741032800930,0.34786238,574.94,574.57,2.148]
[1741032808738,2.11777567,574.93,574.57,1.062]
[1741032808941,0.30020319,574.92,574.57,1.062]
[1741032809438,0.34788053,574.91,574.57,1.062]
[1741032809639,0.30020319,574.9,574.57,1.062]
[1741032809940,0.34789264,574.89,574.57,1.062]
[1741032814138,0.34789264,574.89,574.55,2.576]
[1741032818742,1.81660787,575.5,574.55,2.576]
[1741032818948,0.34753596,575.48,574.56,0.31973749]
[1741032820444,1.81464229,576.33,574.57,0.66782388]
[1741032820647,0.3470776,576.24,574.58,0.66781782]
[1741032820851,0.3470776,576.24,574.59,0.66781176]
[1741032821146,0.3470776,576.24,574.61,0.34806216]
[1741032821347,0.3470776,576.24,574.62,0.31947375]
[1741032821942,0.3470776,576.24,574.63,1.76505004]
[1741032822144,0.3470776,576.24,574.64,0.66751774]
[1741032822342,0.3470776,576.24,574.65,0.31947375]
[1741032822544,0.3470776,576.24,574.66,0.34803187]
[1741032822746,0.3470776,576.24,574.67,0.31944828]
[1741032823149,0.30074549,576.23,574.67,0.31944828]
[1741032823945,0.30074549,576.23,574.68,0.31944828]
[1741032824147,0.3470776,576.24,574.68,0.31944828]
[1741032824148,1.81450824,576.22,574.68,0.31944828]
[1741032824349,0.3470776,576.24,574.68,0.31944828]
[1741032824350,0.3470776,576.24,574.69,0.31944828]
[1741032824545,0.3470776,576.24,574.7,0.31944828]
[1741032824747,0.3470776,576.24,574.69,0.31944828]
[1741032824951,0.3470776,576.24,574.7,0.31944828]
[1741032825250,0.3470776,576.24,574.71,0.31944828]
[1741032825450,0.3470776,576.24,574.72,0.31944828]
[1741032825645,0.3470776,576.24,574.73,0.31944828]
[1741032825847,0.3470776,576.24,574.74,0.31944828]
[1741032826151,0.3470776,576.24,574.75,0.31944828]
[1741032826349,0.3470776,576.24,574.76,0.31944828]
[1741032826554,0.3470776,576.24,574.77,0.31944828]
[1741032826755,0.3470776,576.24,574.78,0.31944828]
[1741032826955,0.3470776,576.24,574.69,0.31944828]
[1741032827156,0.3470776,576.24,574.7,0.31944828]
[1741032827351,0.3470776,576.24,574.69,0.31944828]
[1741032827551,0.3470776,576.24,574.7,0.31944828]
[1741032827757,0.3470776,576.24,574.69,0.31944828]
[1741032827951,0.3470776,576.24,574.7,0.31944828]
[1741032828156,0.3470776,576.24,574.71,0.31944828]
[1741032828657,0.3470776,576.24,574.72,0.31944828]
[1741032828858,0.3470776,576.24,574.73,0.31944828]
[1741032829157,0.3470776,576.24,574.74,0.31944828]
[1741032829356,0.3470776,576.24,574.75,0.31944828]
[1741032829551,0.3470776,576.24,574.76,0.31944828]
[1741032829757,0.3470776,576.24,574.77,0.31944828]
[1741032830057,0.3470776,576.24,574.78,0.31944828]
[1741032830259,0.3470776,576.24,574.79,0.31944828]
[1741032830459,0.3470776,576.24,574.8,0.31944828]
[1741032830655,0.3470776,576.24,574.81,0.31944828]
[1741032830958,0.3470776,576.24,574.82,0.98590535]
[1741032831160,0.3470776,576.24,574.83,0.31944828]
[1741032831357,0.3470776,576.24,574.85,0.34791684]
[1741032831558,0.3470776,576.24,574.86,0.31944828]
[1741032831753,0.3470776,576.24,574.87,0.31944828]
[1741032832153,0.3470776,576.24,574.88,0.31944828]
[1741032832453,0.3470776,576.24,574.85,0.34791684]
[1741032832454,0.3470776,576.24,574.89,0.31944828]
[1741032832659,0.3470776,576.24,574.9,0.98590535]
[1741032832859,0.3470776,576.24,574.91,0.98590535]
[1741032833159,0.3470776,576.24,574.92,0.31944828]
[1741032833359,0.3470776,576.24,574.93,0.31944828]
[1741032833559,0.3470776,576.24,574.94,0.31944828]
[1741032833860,0.3470776,576.24,574.95,0.31944828]
[1741032834059,0.3470776,576.24,574.96,0.31944828]
[1741032834359,0.3470776,576.24,574.91,1.226]
[1741032834360,0.3470776,576.24,574.97,0.31944828]
[1741032834560,0.3470776,576.24,574.92,0.66645707]
[1741032834561,0.3470776,576.24,574.98,0.31944828]
[1741032834761,0.3470776,576.24,574.99,0.31944828]
[1741032835155,0.3470776,576.24,575.0,0.66727436]
[1741032835355,0.3470776,576.24,575.01,0.31944828]
[1741032835556,0.3470776,576.24,575.03,0.34780794]
[1741032835761,0.3470776,576.24,575.04,0.31944828]
[1741032835957,0.3470776,576.24,575.05,0.31944828]
[1741032836157,0.3470776,576.24,575.06,0.31944828]
[1741032836358,0.3470776,576.24,575.07,0.31944828]
[1741032836562,0.3470776,576.24,575.04,1.24]
[1741032836758,0.3470776,576.24,575.05,0.31914784]
[1741032836959,1.8125,576.89,575.06,0.31914784]
[1741032837156,0.34669856,576.87,575.07,0.31914784]
[1741032837364,0.30117873,576.86,575.08,0.31914784]
[1741032837565,0.30117873,576.86,575.05,0.31914784]
[1741032837766,0.30117873,576.86,575.04,1.24]
[1741032837767,0.30117873,576.86,575.06,0.31914784]
[1741032838066,0.30117873,576.86,575.07,0.31914784]
[1741032838264,0.30130525,576.85,575.08,0.31912956]
[1741032838567,0.30130525,576.84,575.09,0.31912956]
[1741032838769,0.30130525,576.86,575.1,0.31912956]
[1741032838967,0.30130525,576.85,575.11,0.31912956]
[1741032839164,0.30130525,576.86,575.12,0.31912956]
[1741032839365,0.30130525,576.85,575.13,0.31912956]
[1741032839573,0.30117689,576.84,575.14,0.31912956]
[1741032839869,0.30117689,576.86,575.05,0.31912956]
[1741032840063,0.34669856,576.87,575.15,1.613]
[1741032840064,0.30117689,576.85,575.15,1.613]
[1741032840269,0.30117689,576.86,575.15,1.613]
[1741032840470,0.30117689,576.86,575.16,0.31912956]
[1741032840677,0.30117689,576.85,575.16,0.31912956]
[1741032840871,0.30117689,576.84,575.16,0.31912956]
[1741032841372,0.30117689,576.83,575.16,0.31912956]
[1741032841674,0.30117689,576.82,575.16,0.31912956]
[1741032841968,0.30117689,576.81,575.15,1.613]
[1741032842167,0.30117689,576.8,575.16,0.31945628]
[1741032842369,2.81254256,576.82,575.15,1.613]
[1741032842567,0.30118774,576.79,575.17,0.31936432]
[1741032842771,1.81371229,576.82,575.15,1.613]
[1741032842970,0.3013147,576.81,575.17,1.577]
[1741032843765,0.3013147,576.81,575.17,3.629]
[1741032844667,0.3013147,576.81,575.18,0.31937691]
[1741032844877,1.81340513,576.8,575.18,0.31937691]
[1741032845172,0.3013147,576.79,575.19,0.31937691]
[1741032845371,0.3013147,576.79,575.2,0.31937691]
[1741032845573,0.3013147,576.79,575.21,0.31937691]
[1741032845765,1.81340513,576.8,575.22,0.31923235]
[1741032845967,0.30170278,576.78,575.18,0.31923235]
[1741032846167,0.30170278,576.77,575.18,0.31923235]
[1741032846370,1.81340513,576.8,575.18,0.31923235]
[1741032846371,0.30170278,576.79,575.18,0.98533187]
[1741032846573,1.81340513,576.8,575.18,0.98533187]
[1741032846767,0.30168639,576.79,575.19,0.31923235]
[1741032846967,0.30168639,576.79,575.2,0.31923235]
[1741032847266,1.81340513,576.8,575.17,3.629]
[1741032847474,1.81340513,576.8,575.18,0.31914417]
[1741032847669,0.30158844,576.79,575.19,0.31914417]
[1741032847870,1.81283046,576.79,575.2,0.31914417]
[1741032848073,1.81283046,576.79,575.21,0.31914417]
[1741032848277,0.30158269,576.78,575.22,0.31914417]
[1741032848475,0.30158269,576.78,575.23,0.31914417]
[1741032848778,0.30158269,576.78,575.24,0.31914417]
[1741032848977,0.30168349,576.77,575.25,0.31917462]
[1741032849176,0.30168349,576.78,575.26,0.31917462]
[1741032849370,0.30168349,576.77,575.27,0.31917462]
[1741032849571,0.30168349,576.77,575.18,0.66608207]
[1741032849572,0.30168349,576.78,575.28,0.31917462]
[1741032849771,0.30168349,576.77,575.29,0.31917462]
[1741032849976,1.81264161,576.84,575.3,0.31917462]
[1741032850275,1.81264161,576.84,575.31,0.31917462]
[1741032850473,1.81264161,576.84,575.18,0.66600653]
[1741032850677,0.30175,576.83,575.19,0.31913706]
[1741032850978,0.30175,576.83,575.2,0.31913706]
[1741032851178,0.30175,576.83,575.21,0.31913706]
[1741032851476,0.30175,576.83,575.22,0.31913706]
[1741032851675,0.30175,576.83,575.18,0.66600653]
[1741032851676,0.30175,576.83,575.23,0.31913706]
[1741032851879,0.30175,576.83,575.24,0.31913706]
[1741032852276,0.30175,576.83,575.25,0.31913706]
[1741032852476,0.30175,576.83,575.26,0.31913706]
[1741032852776,0.30175,576.83,575.27,0.31913706]
[1741032852977,0.30175,576.83,575.28,0.31913706]
[1741032853177,0.30175,576.83,575.29,0.31913706]
[1741032853476,0.30175,576.83,575.3,0.31913706]
[1741032853677,0.30175,576.83,575.31,0.31913706]
[1741032853869,2.11466703,576.82,575.32,0.31913706]
[1741032854070,0.30175,576.81,575.33,0.31913706]
[1741032854276,0.30175,576.81,575.27,0.31913706]
[1741032854475,0.30175,576.81,575.28,0.31913706]
[1741032854672,0.30175,576.81,575.29,0.31913706]
[1741032854873,0.30175,576.81,575.3,0.31913706]
[1741032855380,0.30175,576.81,575.31,0.31913706]
[1741032855575,0.30175,576.81,575.32,0.31913706]
[1741032855777,0.30175,576.81,575.33,0.31913706]
[1741032855978,0.30175,576.81,575.27,0.31913706]
[1741032856177,1.81291703,576.82,575.26,1.361]
[1741032856478,0.3018469,576.81,575.26,1.361]
[1741032856979,0.30180824,576.8,575.26,1.361]
[1741032857178,0.30180824,576.81,575.26,1.361]
[1741032857380,0.30180824,576.8,575.26,1.361]
[1741032857574,0.30180824,576.81,575.26,1.361]
[1741032857975,0.30180824,576.8,575.26,1.361]
[1741032858577,8.30607316,576.8,575.26,1.361]
[1741032858782,8.30607316,576.8,575.27,0.319429]
[1741032858783,7.88310407,576.79,575.27,0.319429]
[1741032858978,7.88312713,576.78,575.26,1.361]
[1741032859281,7.88312713,576.77,575.26,1.361]
[1741032859581,7.88312713,576.76,575.26,1.361]
[1741032859881,7.88312713,576.75,575.26,1.361]
[1741032860081,7.88312713,576.74,575.26,1.361]
[1741032860284,7.88638604,576.73,575.26,1.361]
[1741032860583,7.88638604,576.72,575.26,1.361]
[1741032860783,7.88638604,576.71,575.26,1.361]
[1741032860982,7.88638604,576.7,575.26,1.361]
[1741032861182,7.88638604,576.69,575.26,1.361]
[1741032861376,7.88638604,576.68,575.26,1.361]
[1741032861576,4.61413834,576.67,575.26,1.361]
[1741032861779,1.29916849,576.66,575.27,0.31944921]
[1741032861976,0.30180824,576.65,575.26,1.361]
[1741032862282,0.34684286,576.63,575.27,0.31939377]
[1741032862483,0.30180824,576.62,575.27,0.31939377]
[1741032862880,2.1150244,576.62,575.27,0.31939377]
[1741032863078,1.81321616,576.62,575.27,0.31939377]
[1741032863284,0.3019933,576.61,575.28,0.31928734]
[1741032863475,0.3019933,576.61,575.27,0.31928734]
[1741032863677,0.3019933,576.61,575.28,0.31928734]
[1741032863880,0.3019933,576.61,575.29,0.31928734]
[1741032864076,0.3019933,576.61,575.27,0.31928734]
[1741032864381,0.3019933,576.61,575.28,0.31928734]
[1741032864581,0.3019933,576.61,575.27,0.31928734]
[1741032864778,1.81321616,576.62,575.26,1.361]
[1741032864979,0.30175102,576.61,575.26,1.361]
[1741032865279,0.30175102,576.61,575.27,1.185]
[1741032865483,0.30175102,576.61,575.27,2.579]
[1741032865881,1.81363352,576.6,575.27,2.579]
[1741032866085,0.30175102,576.59,575.27,2.579]
[1741032866487,0.99577151,576.56,575.27,2.579]
[1741032866687,0.99577151,576.52,575.27,2.579]
[1741032866887,0.30170965,576.51,575.27,2.579]
[1741032867086,0.30170965,576.5,575.27,2.579]
[1741032867288,1.29748116,576.5,575.27,2.579]
[1741032867488,0.30170965,576.49,575.27,2.579]
[1741032867681,0.30170965,576.48,575.27,2.579]
[1741032867881,7.61745814,576.53,575.27,2.579]
[1741032868084,7.91927072,576.52,575.27,2.579]
[1741032868284,5.86067292,576.51,575.27,2.579]
[1741032868484,0.34692709,576.49,575.27,3.768]
[1741032868688,0.30181258,576.48,575.28,0.31939972]
[1741032869090,0.34692709,576.49,575.28,0.31939972]
[1741032869390,0.30173508,576.48,575.28,0.31939972]
[1741032869588,0.34692709,576.49,575.28,0.31939972]
[1741032869790,0.34692709,576.49,575.27,3.768]
[1741032870192,0.3017024,576.48,575.27,3.768]
[1741032870392,0.34694514,576.46,575.27,3.768]
[1741032870593,0.3017024,576.45,575.27,3.768]
[1741032870795,0.3017024,576.45,575.28,0.31941689]
[1741032871093,0.3017024,576.45,575.27,3.768]
[1741032872587,0.34694514,576.46,575.27,3.768]
[1741032872791,0.30160754,576.45,575.27,3.768]
[1741032872991,0.99577151,576.44,575.27,5.368]
[1741032873292,0.99577151,576.35,575.27,5.368]
[1741032873487,1.29737905,576.34,575.27,5.368]
[1741032873692,0.99577151,576.25,575.27,5.368]
[1741032873893,0.99577151,576.22,575.27,5.368]
[1741032874096,0.30160754,576.21,575.27,5.368]
[1741032874393,0.30160754,576.2,575.27,5.368]
[1741032874695,0.30160754,576.24,575.27,5.368]
[1741032874888,0.30160754,576.23,575.27,5.368]
[1741032875088,0.30160754,576.26,575.27,5.368]
[1741032875294,0.30160754,576.25,575.27,5.368]
[1741032875491,0.30160754,576.24,575.27,5.368]
[1741032875691,0.99577151,576.21,575.27,5.368]
[1741032875897,0.99577151,576.16,575.27,5.368]
[1741032876097,0.30160754,576.15,575.27,5.368]
[1741032876297,0.99577151,576.17,575.27,7.111]
[1741032876497,0.30160754,576.16,575.27,7.111]
[1741032876695,0.30160754,576.17,575.27,7.111]
[1741032876895,0.30160754,576.16,575.27,7.111]
[1741032877199,0.34713784,576.14,575.27,7.111]
[1741032877391,0.30160754,576.13,575.27,7.111]
[1741032877594,1.29737905,576.13,575.27,7.111]
[1741032877795,0.99577151,576.1,575.27,7.111]
[1741032878096,0.99577151,576.07,575.27,7.111]
[1741032878398,0.99577151,576.01,575.27,7.111]
[1741032878594,0.99577151,575.98,575.27,7.111]
[1741032878794,0.30160754,575.97,575.27,7.111]
[1741032879092,0.99577151,575.89,575.27,7.111]
[1741032879297,0.30094507,575.88,575.27,7.111]
[1741032879497,0.30094507,575.88,575.27,8.848]
[1741032879698,0.300937,575.87,575.27,8.848]
[1741032880095,0.34730663,575.86,575.27,8.848]
[1741032880295,0.64824363,575.86,575.27,8.848]
[1741032880497,0.300937,575.85,575.27,8.848]
[1741032880994,2.11628925,575.85,575.27,10.209]
[1741032881199,0.300937,575.84,575.27,10.209]
[1741032881699,1.00992747,575.78,575.27,10.209]
[1741032881997,0.64829792,575.77,575.27,10.209]
[1741032882194,0.300937,575.76,575.27,10.209]
[1741032883392,1.00752292,575.67,575.27,10.209]
[1741032883597,0.300937,575.66,575.27,10.209]
[1741032883796,1.00752292,575.66,575.27,10.209]
[1741032884001,1.00752292,575.63,575.27,10.209]
[1741032884299,1.00752292,575.59,575.27,7.63]
[1741032884496,1.00752292,575.61,575.27,7.63]
[1741032884697,0.300937,575.58,575.27,7.63]
[1741032885097,0.300937,575.57,575.27,7.63]
[1741032885298,0.300937,575.59,575.27,7.63]
[1741032885495,0.300937,575.58,575.27,7.63]
[1741032885694,0.300937,575.59,575.27,7.63]
[1741032885899,0.64841258,575.58,575.27,7.63]
[1741032886099,0.300937,575.57,575.27,7.63]
[1741032887298,0.34748766,575.56,575.27,7.63]
[1741032887597,0.300937,575.55,575.27,7.63]
[1741032888301,0.34749973,575.54,575.27,7.63]
[1741032888595,0.300937,575.53,575.27,7.63]
[1741032889199,0.34751181,575.52,575.27,7.63]
[1741032889401,0.300937,575.51,575.27,7.63]
[1741032889601,0.34751181,575.52,575.27,7.63]
[1741032890096,1.81584955,575.51,575.27,7.63]
[1741032891401,0.30083577,575.5,575.27,5.887]
[1741032891898,1.81584955,575.51,575.27,5.887]
[1741032892201,0.34752389,575.5,575.27,5.887]
[1741032893201,1.81589693,575.49,575.27,4.287]
[1741032894401,1.81589693,575.49,575.27,3.098]
[1741032894703,0.30070529,575.48,575.27,3.098]
[1741032895299,0.30072776,575.47,575.27,3.098]
[1741032895496,0.30072776,575.46,575.27,3.098]
[1741032895702,0.30072776,575.45,575.27,3.098]
[1741032895900,1.81613384,575.45,575.27,3.098]
[1741032896197,0.64828788,575.44,575.27,3.098]
[1741032896403,0.34756012,575.44,575.27,3.098]
[1741032897305,0.30066619,575.43,575.27,3.098]
[1741032898501,0.34756012,575.44,575.27,3.098]
[1741032898701,0.30069367,575.43,575.27,3.098]
[1741032898899,2.11679592,575.43,575.27,3.098]
[1741032899104,0.30069367,575.42,575.27,3.098]
[1741032901200,0.99997367,575.41,575.27,3.098]
[1741032901403,0.30069367,575.4,575.27,3.098]
[1741032901799,3.19582463,575.41,575.27,3.098]
[1741032901800,4.2003205,575.41,575.27,3.098]
[1741032902004,3.19582463,575.41,575.27,3.098]
[1741032902202,1.81604697,575.39,575.27,3.098]
[1741032902706,0.34756012,575.44,575.27,3.098]
[1741032904107,0.30066104,575.43,575.27,3.098]
[1741032904909,0.30066104,575.43,575.27,1.737]
[1741032905409,0.30066104,575.43,575.18,1.256]
[1741032907510,0.34756012,575.44,575.18,1.256]
[1741032907707,0.30067143,575.43,575.18,1.256]
[1741032910011,0.34756012,575.44,575.18,1.256]
[1741032910907,1.81588113,575.43,575.18,1.256]
[1741032911807,0.30068549,575.42,575.18,1.256]
[1741032912212,1.81588113,575.43,575.18,1.256]
[1741032914014,0.34756012,575.44,575.18,1.256]
[1741032917514,0.34756012,575.44,575.06,1.096]
[1741032920125,0.34756012,575.44,575.04,3.681]
[1741032920720,0.34756012,575.44,575.04,4.816]
[1741032920923,0.34756012,575.44,575.05,0.31949078]
[1741032921926,0.34756012,575.44,575.04,3.696]
[1741032922225,0.34756012,575.44,575.05,0.3194028]
[1741032922725,1.81409048,576.32,575.05,0.3194028]
[1741032923423,1.81409048,576.32,575.05,1.6274028]
[1741032923727,1.81409048,576.32,575.06,0.3194028]
[1741032923921,0.30116494,576.31,575.06,0.3194028]
[1741032924329,0.30116494,576.31,575.06,1.5924028]
[1741032924521,0.30116494,576.31,575.07,0.3194028]
[1741032925625,1.00645119,576.3,575.06,1.273]
[1741032925824,0.30116494,576.29,575.07,0.31953215]
[1741032926023,4.66890932,576.29,575.07,0.31953215]
[1741032926226,0.34705953,576.27,575.06,1.273]
[1741032926520,0.30116494,576.26,575.07,0.31949912]
[1741032926923,0.34705953,576.27,575.07,0.31949912]
[1741032928026,0.30115761,576.26,575.07,0.31949912]
[1741032928223,0.34705953,576.27,575.07,0.31949912]
[1741032928930,0.34705953,576.27,575.08,1.61]
[1741032929130,0.34705953,576.27,575.09,0.31949912]
[1741032930326,0.34705953,576.27,575.1,0.31949912]
[1741032930526,0.34705953,576.27,575.11,0.31949912]
[1741032930831,0.34705953,576.27,575.12,0.31949912]
[1741032931930,0.34705953,576.27,575.13,0.31949912]
[1741032932239,0.34705953,576.27,575.14,0.31949912]
[1741032932432,0.34705953,576.27,575.15,0.31949912]
[1741032932632,0.34705953,576.27,575.16,0.31949912]
[1741032932833,0.34705953,576.27,575.17,0.31949912]
[1741032933038,0.34705953,576.27,575.18,0.31949912]
[1741032933331,0.34705953,576.27,575.19,0.31949912]
[1741032933532,0.34705953,576.27,575.12,0.31949912]
[1741032933738,0.34705953,576.27,575.13,0.31949912]
[1741032933932,0.34705953,576.27,575.13,0.34774746]
[1741032934137,0.34705953,576.27,575.14,0.31949912]
[1741032934340,0.34705953,576.27,575.15,0.66723449]
[1741032934537,0.34705953,576.27,575.16,0.31949912]
[1741032935729,0.34705953,576.27,575.17,0.34772328]
[1741032935930,0.34705953,576.27,575.18,0.31949912]
[1741032936935,4.3932852,577.26,575.19,0.31949912]
[1741032937132,1.81261014,576.86,575.2,0.31949912]
[1741032937432,0.34652436,577.16,575.21,0.31949912]
[1741032937632,1.81268095,576.85,575.18,0.31949912]
[1741032937836,0.34652436,577.16,575.19,0.31949912]
[1741032938040,1.8128462,576.84,575.18,0.31949912]
[1741032938339,0.30055431,576.83,575.19,0.31949912]
[1741032938542,0.30055431,577.15,575.18,0.31949912]
[1741032938839,1.34916915,577.16,575.17,0.34772328]
[1741032938840,1.00264479,577.13,575.19,0.31949912]
[1741032939039,0.34652436,577.16,575.2,0.31949912]
[1741032939040,1.00264479,577.06,575.2,0.31949912]
[1741032939339,1.00264479,576.95,575.18,1.145]
[1741032939534,0.30038902,576.94,575.19,0.31930456]
[1741032939739,1.00264479,576.92,575.19,0.31930456]
[1741032940039,0.30038902,576.91,575.19,0.31930456]
[1741032940244,0.30038902,576.9,575.2,1.364]
[1741032940541,0.30038902,576.89,575.21,0.31930456]
[1741032940741,0.30038902,576.91,575.21,0.31930456]
[1741032941043,1.81329489,576.89,575.21,0.31930456]
[1741032941342,0.34669856,576.87,575.21,0.31930456]
[1741032941541,0.30038902,576.86,575.21,0.31930456]
[1741032942843,0.30038902,576.86,575.22,1.393]
[1741032943040,1.00264479,576.85,575.23,0.31930456]
[1741032943240,0.30038902,576.86,575.23,0.31930456]
[1741032943241,1.00264479,576.82,575.23,0.31930456]
[1741032943439,0.30038902,576.81,575.23,0.31930456]
[1741032943641,0.30038902,576.82,575.23,0.31930456]
[1741032943837,1.81342875,576.8,575.23,0.31930456]
[1741032944040,0.30038902,576.79,575.23,0.31930456]
[1741032944440,0.30038902,576.79,575.22,1.393]
[1741032944638,1.00264479,576.75,575.22,1.393]
[1741032944842,0.30038902,576.74,575.22,1.393]
[1741032945043,0.30038902,576.73,575.22,1.393]
[1741032945239,1.00264479,576.7,575.22,1.393]
[1741032945443,1.00264479,576.66,575.22,1.393]
[1741032945640,0.30038902,576.69,575.22,1.393]
[1741032945945,0.30038902,576.68,575.23,0.31941093]
[1741032946246,0.30038902,576.67,575.22,1.393]
[1741032946445,7.93956504,576.71,575.23,0.31940527]
[1741032946641,0.30038902,576.66,575.23,0.31940527]
[1741032946842,1.81325552,576.7,575.23,0.31940527]
[1741032947646,1.81325552,576.7,575.24,1.327]
[1741032947945,1.81325552,576.7,575.25,0.31940527]
[1741032948138,1.81325552,576.7,575.24,1.327]
[1741032948340,1.81325552,576.7,575.25,0.31925535]
[1741032948941,1.81325552,576.7,575.26,0.31925535]
[1741032949144,1.81325552,576.7,575.24,1.327]
[1741032949341,1.81325552,576.7,575.25,0.31915501]
[1741032949551,1.81325552,576.7,575.26,0.31915501]
[1741032949750,1.81325552,576.7,575.25,0.31915501]
[1741032949946,0.34681279,576.68,575.26,0.31915501]
[1741032950151,0.34681279,576.68,575.27,0.31915501]
[1741032950349,0.34681279,576.68,575.28,0.31915501]
[1741032950547,0.34681279,576.68,575.29,0.31915501]
[1741032950750,0.34681279,576.68,575.28,0.31915501]
[1741032950950,0.34681279,576.68,575.29,0.31915501]
[1741032951150,0.34681279,576.68,575.28,0.31915501]
[1741032951351,0.34681279,576.68,575.29,0.31915501]
[1741032951553,1.81293277,576.67,575.28,0.31915501]
[1741032952348,0.34681279,576.68,575.29,0.31915501]
[1741032952544,1.81290129,576.67,575.3,0.31915501]
[1741032952749,1.81290129,576.67,575.31,0.31915501]
[1741032952949,1.81290129,576.67,575.27,2.016]
[1741032952950,0.30051916,576.66,575.32,0.31915501]
[1741032953145,1.81290129,576.67,575.33,0.31915501]
[1741032953346,0.30049653,576.66,575.34,0.31915501]
[1741032953553,0.30049653,576.66,575.28,0.31915501]
[1741032953751,1.81290129,576.67,575.29,0.31915501]
[1741032953947,1.81290129,576.67,575.27,2.016]
[1741032954149,0.30042711,576.66,575.28,0.31925644]
[1741032955551,0.30042711,576.66,575.29,0.31925644]
[1741032955751,0.30042711,576.66,575.28,0.31925644]
[1741032956053,0.30042711,576.66,575.29,0.31925644]
[1741032956261,0.30042711,576.66,575.3,0.31925644]
[1741032956457,0.30042711,576.67,575.31,0.31925644]
[1741032956657,0.34681279,576.68,575.32,0.31925644]
[1741032956856,0.30051318,576.67,575.33,0.31925644]
[1741032957051,0.34683083,576.65,575.34,0.31925644]
[1741032957253,0.34683083,576.65,575.35,0.31925644]
[1741032957459,0.34683083,576.65,575.36,0.31925644]
[1741032957653,0.34683083,576.65,575.37,0.31925644]